[Event "11th LCC Super Blitz 2019"]
[Site "London"]
[Date "2019.12.08"]
[Round "10.2"]
[White "Balaji, Aaravamudhan"]
[Black "Grover, Sahaj"]
[Result "0-1"]
[ECO "D38"]
[WhiteElo "2120"]
[BlackElo "2486"]
[Annotator "ChessBase"]
[PlyCount "79"]
[EventDate "2019.12.08"]
[EventType "swiss"]
[EventCountry "ENG"]
[SourceTitle "playchess.com"]
[Source "ChessBase"]
[SourceQuality "1"]
[TimeControl "180+2"]

1. d4 {[%emt 0:00:00]} d5 {[%emt 0:00:00]} 2. c4 {[%emt 0:00:00]} e6 {[%emt 0:00:00]} 3. Nc3 {[%emt 0:00:00]} Bb4 {[%emt 0:00:01]} 4. Nf3 {[%emt 0:00:04]} Nf6 {[%emt 0:00:01]} 5. Bg5 {[%emt 0:00:10]} h6 {[%emt 0:00:03]} 6. Bxf6 {[%emt 0:00:02]} Qxf6 {[%emt 0:00:01]} 7. Qa4+ {[%emt 0:00:01]} Nc6 {[%emt 0:00:01]} 8. e3 {[%emt 0:00:01]} Bd7 {[%emt 0:00:06]} 9. Qb3 {[%emt 0:00:07]} dxc4 {[%emt 0:00:20]} 10. Bxc4 {[%emt 0:00:13]} O-O {[%emt 0:00:02]} 11. O-O {[%emt 0:00:05]} a6 {[%emt 0:00:23]} 12. d5 {[%emt 0:00:17]} exd5 {[%emt 0:00:12]} 13. Nxd5 {[%emt 0:00:01]} Qd6 {[%emt 0:00:01]} 14. Nxb4 {[%emt 0:00:29]} Qxb4 {[%emt 0:00:03]} 15. Qxb4 {[%emt 0:00:01]} Nxb4 {[%emt 0:00:02]} 16. a3 {[%emt 0:00:08]} Nc6 {[%emt 0:00:01]} 17. Rfd1 {[%emt 0:00:04]} Bg4 {[%emt 0:00:01]} 18. Be2 {[%emt 0:00:12]} Rfd8 {[%emt 0:00:17]} 19. h3 {[%emt 0:00:06]} Be6 {[%emt 0:00:02]} 20. Rxd8+ {[%emt 0:00:30]} Rxd8 {[%emt 0:00:01]} 21. Rd1 {[%emt 0:00:01]} Rxd1+ {[%emt 0:00:11]} 22. Bxd1 {[%emt 0:00:00]} Kf8 {[%emt 0:00:01]} 23. Kf1 {[%emt 0:00:07]} Ke7 {[%emt 0:00:02]} 24. Ke2 {[%emt 0:00:00]} Na5 {[%emt 0:00:13]} 25. Nd4 {[%emt 0:00:25]} Bd7 {[%emt 0:00:22]} 26. Kd3 {[%emt 0:00:09]} c5 {[%emt 0:00:02]} 27. Nc2 {[%emt 0:00:08]} Be6 {[%emt 0:00:29]} 28. Bf3 {[%emt 0:00:07]} b6 {[%emt 0:00:07]} 29. b4 {[%emt 0:00:06]} Nc4 {[%emt 0:00:08]} 30. bxc5 {[%emt 0:00:15]} Ne5+ {[%emt 0:00:01]} 31. Kd4 {[%emt 0:00:05]} Nxf3+ {[%emt 0:00:04]} 32. gxf3 {[%emt 0:00:01]} bxc5+ {[%emt 0:00:00]} 33. Kxc5 {[%emt 0:00:00]} Bxh3 {[%emt 0:00:01]} 34. Kd4 {[%emt 0:00:06]} Bg2 {[%emt 0:00:04]} 35. Ke4 {[%emt 0:00:01]} g5 {[%emt 0:00:02]} 36. Nd4 {[%emt 0:00:01]} Kf6 {[%emt 0:00:13]} 37. Ne2 {[%emt 0:00:09]} h5 {[%emt 0:00:06]} 38. Ng3 {[%emt 0:00:00]} h4 {[%emt 0:00:01]} 39. Nf5 {[%emt 0:00:02]} Bxf3+ {[%emt 0:00:02]} 40. Kd4 {[%emt 0:00:03]} 0-1

[Event "11th LCC Super Blitz 2019"]
[Site "London"]
[Date "2019.12.08"]
[Round "10.3"]
[White "Maze, Sebastien"]
[Black "Srivastava, Arnav"]
[Result "1-0"]
[ECO "C77"]
[WhiteElo "2549"]
[BlackElo "1728"]
[Annotator "ChessBase"]
[PlyCount "59"]
[EventDate "2019.12.08"]
[EventType "swiss"]
[EventCountry "ENG"]
[SourceTitle "playchess.com"]
[Source "ChessBase"]
[SourceQuality "1"]
[TimeControl "180+2"]

1. e4 {[%emt 0:02:44]} e5 {[%emt 0:00:01]} 2. Nf3 Nc6 3. Bb5 a6 4. Ba4 {[%emt 0:00:01]} Nf6 5. Nc3 Be7 6. Bxc6 {[%emt 0:00:03]} dxc6 {[%emt 0:00:01]} 7. a3 Bd6 8. d4 {[%emt 0:00:02]} Bg4 {[%emt 0:00:05]} 9. dxe5 {[%emt 0:00:06]} Bxf3 {[%emt 0:00:02]} 10. Qxf3 {[%emt 0:00:02]} Bxe5 11. Bf4 {[%emt 0:00:15]} Qe7 {[%emt 0:00:07]} 12. Bxe5 {[%emt 0:00:03]} Qxe5 {[%emt 0:00:02]} 13. O-O-O {[%emt 0:00:05]} O-O {[%emt 0:00:04]} 14. Qg3 {[%emt 0:00:02]} Qxg3 {[%emt 0:00:10]} 15. hxg3 Rad8 {[%emt 0:00:01]} 16. f3 b5 {[%emt 0:00:04]} 17. g4 {[%emt 0:00:02]} g5 {[%emt 0:00:14]} 18. Ne2 {[%emt 0:00:06]} c5 {[%emt 0:00:17]} 19. Ng3 {[%emt 0:00:01]} Nd7 {[%emt 0:00:37]} 20. Rd5 {[%emt 0:00:07]} Nb6 {[%emt 0:00:18]} 21. Rxg5+ {[%emt 0:00:02]} Kh8 {[%emt 0:00:03]} 22. Rgh5 {[%emt 0:00:04]} Kg7 {[%emt 0:00:06]} 23. Nf5+ {[%emt 0:00:07]} Kf6 {[%emt 0:00:07]} 24. f4 Ke6 {[%emt 0:00:05]} 25. Rxh7 {[%emt 0:00:06]} Nc4 {[%emt 0:00:13]} 26. g5 {[%emt 0:00:05]} Nd2 {[%emt 0:00:07]} 27. R7h6+ {[%emt 0:00:02]} f6 {[%emt 0:00:06]} 28. Ng3 {[%emt 0:00:48]} Ke7 {[%emt 0:00:22]} 29. Rd1 {[%emt 0:00:12]} Nc4 {[%emt 0:00:04]} 30. Rxd8 {[%emt 0:00:06]} 1-0

[Event "11th LCC Super Blitz 2019"]
[Site "London"]
[Date "2019.12.08"]
[Round "10.3"]
[White "Beinoras, Mindaugas"]
[Black "Aravindh, Chithambaram Vr"]
[Result "0-1"]
[ECO "D38"]
[WhiteElo "2401"]
[BlackElo "2560"]
[Annotator "ChessBase"]
[PlyCount "124"]
[EventDate "2019.12.08"]
[EventType "swiss"]
[EventCountry "ENG"]
[SourceTitle "playchess.com"]
[Source "ChessBase"]
[SourceQuality "1"]
[TimeControl "180+2"]

1. d4 {[%emt 0:00:00]} d5 {[%emt 0:00:00]} 2. c4 {[%emt 0:00:00]} e6 {[%emt 0:00:01]} 3. Nc3 {[%emt 0:00:01]} Bb4 {[%emt 0:00:01]} 4. Nf3 {[%emt 0:00:06]} Nf6 {[%emt 0:00:02]} 5. cxd5 {[%emt 0:00:01]} exd5 {[%emt 0:00:01]} 6. Bg5 {[%emt 0:00:02]} h6 {[%emt 0:00:04]} 7. Bh4 {[%emt 0:00:01]} g5 {[%emt 0:00:03]} 8. Bg3 {[%emt 0:00:01]} c5 {[%emt 0:00:02]} 9. e3 {[%emt 0:00:08]} Nc6 {[%emt 0:00:04]} 10. Bd3 {[%emt 0:00:13]} c4 {[%emt 0:00:22]} 11. Bb1 {[%emt 0:00:10]} Be6 {[%emt 0:00:22]} 12. Ne5 {[%emt 0:00:08]} Qa5 {[%emt 0:00:10]} 13. Qc1 {[%emt 0:00:18]} Ne7 {[%emt 0:00:20]} 14. O-O {[%emt 0:00:06]} Bf5 {[%emt 0:00:03]} 15. f4 {[%emt 0:00:13]} g4 {[%emt 0:00:04]} 16. Bh4 {[%emt 0:00:04]} Bxc3 {[%emt 0:00:50]} 17. bxc3 {[%emt 0:00:19]} Qa6 {[%emt 0:00:01]} 18. Bxf5 {[%emt 0:00:24]} Nxf5 {[%emt 0:00:01]} 19. Bxf6 {[%emt 0:00:01]} Qxf6 {[%emt 0:00:02]} 20. Re1 {[%emt 0:00:14]} Nd6 {[%emt 0:00:10]} 21. Nxg4 {[%emt 0:00:03]} Qe6 {[%emt 0:00:02]} 22. Ne5 {[%emt 0:00:05]} f6 {[%emt 0:00:01]} 23. Nf3 {[%emt 0:00:01]} O-O-O {[%emt 0:00:04]} 24. Qc2 {[%emt 0:00:10]} Rhg8 {[%emt 0:00:05]} 25. Re2 {[%emt 0:00:04]} Rg7 {[%emt 0:00:08]} 26. Rf1 {[%emt 0:00:06]} Rdg8 {[%emt 0:00:01]} 27. Kh1 {[%emt 0:00:02]} Qg4 {[%emt 0:00:13]} 28. Ng1 {[%emt 0:00:09]} Ne4 {[%emt 0:00:06]} 29. Rf3 {[%emt 0:00:01]} Qf5 {[%emt 0:00:06]} 30. Qc1 {[%emt 0:00:17]} Qh5 {[%emt 0:00:13]} 31. Rh3 {[%emt 0:00:10]} Qxe2 {[%emt 0:00:04]} 32. Nxe2 {[%emt 0:00:02]} Nf2+ {[%emt 0:00:01]} 33. Kg1 {[%emt 0:00:00]} Rxg2+ {[%emt 0:00:04]} 34. Kf1 {[%emt 0:00:01]} Nxh3 {[%emt 0:00:02]} 35. Qa3 {[%emt 0:00:02]} Rxh2 {[%emt 0:00:05]} 36. Qc5+ {[%emt 0:00:04]} Kb8 {[%emt 0:00:02]} 37. Qxd5 {[%emt 0:00:05]} Re8 {[%emt 0:00:03]} 38. Qd6+ {[%emt 0:00:04]} Ka8 {[%emt 0:00:01]} 39. Qd7 {[%emt 0:00:01]} Rg8 {[%emt 0:00:05]} 40. Qd5 {[%emt 0:00:04]} a6 {[%emt 0:00:04]} 41. Qxg8+ {[%emt 0:00:02]} Ka7 {[%emt 0:00:01]} 42. Qd5 {[%emt 0:00:01]} Rf2+ {[%emt 0:00:02]} 43. Ke1 {[%emt 0:00:00]} Rh2 {[%emt 0:00:01]} 44. Qf3 {[%emt 0:00:04]} f5 {[%emt 0:00:04]} 45. d5 {[%emt 0:00:00]} Kb6 {[%emt 0:00:03]} 46. e4 {[%emt 0:00:05]} fxe4 {[%emt 0:00:03]} 47. Qxe4 {[%emt 0:00:02]} Nf2 {[%emt 0:00:01]} 48. Qe3+ {[%emt 0:00:01]} Kc7 {[%emt 0:00:02]} 49. Qxf2 {[%emt 0:00:01]} Rxf2 {[%emt 0:00:01]} 50. Kxf2 {[%emt 0:00:01]} Kd6 {[%emt 0:00:00]} 51. Kf3 {[%emt 0:00:12]} Kxd5 {[%emt 0:00:02]} 52. Ng3 {[%emt 0:00:01]} b5 {[%emt 0:00:03]} 53. Nf5 {[%emt 0:00:01]} h5 {[%emt 0:00:02]} 54. Ng7 {[%emt 0:00:01]} h4 {[%emt 0:00:02]} 55. f5 {[%emt 0:00:03]} Ke5 {[%emt 0:00:03]} 56. Kg4 {[%emt 0:00:05]} b4 {[%emt 0:00:01]} 57. Kg5 {[%emt 0:00:08]} bxc3 {[%emt 0:00:02]} 58. f6 {[%emt 0:00:00]} c2 {[%emt 0:00:01]} 59. f7 {[%emt 0:00:01]} c1=Q+ {[%emt 0:00:02]} 60. Kg6 {[%emt 0:00:01]} Qg1+ {[%emt 0:00:02]} 61. Kh7 {[%emt 0:00:01]} Qf2 {[%emt 0:00:03]} 62. Kg8 {[%emt 0:00:01]} h3 {[%emt 0:00:01]} 0-1

[Event "11th LCC Super Blitz 2019"]
[Site "London"]
[Date "2019.12.08"]
[Round "10.3"]
[White "Klingher, Dominic"]
[Black "Rishi, Thariani"]
[Result "0-1"]
[ECO "B23"]
[WhiteElo "2071"]
[BlackElo "2008"]
[Annotator "NA"]
[PlyCount "118"]
[EventDate "2019.12.08"]
[EventType "swiss"]
[EventCountry "ENG"]
[SourceTitle "playchess.com"]
[Source "ChessBase"]
[SourceQuality "1"]
[TimeControl "180+2"]

1. e4 {[%emt 0:00:00]} c5 {[%emt 0:00:00]} 2. Nc3 {[%emt 0:00:00]} a6 {[%emt 0:00:00]} 3. g3 {[%emt 0:00:06]} b5 {[%emt 0:00:01]} 4. Bg2 {[%emt 0:00:01]} Bb7 {[%emt 0:00:00]} 5. d3 {[%emt 0:00:00]} b4 {[%emt 0:00:06]} 6. Nb1 {[%emt 0:00:09]} Nf6 {[%emt 0:00:10]} 7. Ne2 {[%emt 0:00:03]} d6 {[%emt 0:00:06]} 8. h3 {[%emt 0:00:09]} e5 {[%emt 0:00:11]} 9. Be3 {[%emt 0:00:03]} Be7 {[%emt 0:00:01]} 10. O-O {[%emt 0:00:03]} O-O {[%emt 0:00:01]} 11. f4 {[%emt 0:00:04]} Nbd7 {[%emt 0:00:06]} 12. Nd2 {[%emt 0:00:03]} Re8 {[%emt 0:00:05]} 13. f5 {[%emt 0:00:02]} d5 {[%emt 0:00:13]} 14. g4 {[%emt 0:00:05]} h6 {[%emt 0:00:03]} 15. Ng3 {[%emt 0:00:09]} dxe4 {[%emt 0:00:20]} 16. Ndxe4 {[%emt 0:00:03]} Nd5 {[%emt 0:00:06]} 17. Bd2 {[%emt 0:00:07]} Bg5 {[%emt 0:00:23]} 18. Nd6 {[%emt 0:00:09]} Ne3 {[%emt 0:00:33]} 19. Nxb7 {[%emt 0:00:25]} Nxd1 {[%emt 0:00:18]} 20. Nxd8 {[%emt 0:00:01]} Bxd2 {[%emt 0:00:01]} 21. Bxa8 {[%emt 0:00:15]} Be3+ {[%emt 0:00:11]} 22. Kg2 {[%emt 0:00:14]} Nxb2 {[%emt 0:00:06]} 23. Rab1 {[%emt 0:00:21]} Rxd8 24. Bc6 {[%emt 0:00:04]} Bd4 {[%emt 0:00:05]} 25. Ne2 {[%emt 0:00:06]} Nb8 {[%emt 0:00:03]} 26. Nxd4 {[%emt 0:00:14]} Rxd4 {[%emt 0:00:07]} 27. Be8 {[%emt 0:00:18]} Kf8 {[%emt 0:00:01]} 28. Bxf7 {[%emt 0:00:03]} Nxd3 {[%emt 0:00:05]} 29. cxd3 {[%emt 0:00:03]} Kxf7 {[%emt 0:00:00]} 30. Rf3 {[%emt 0:00:02]} Nc6 {[%emt 0:00:01]} 31. Re1 {[%emt 0:00:08]} a5 {[%emt 0:00:04]} 32. Kg3 {[%emt 0:00:05]} a4 {[%emt 0:00:00]} 33. h4 {[%emt 0:00:01]} b3 {[%emt 0:00:05]} 34. axb3 {[%emt 0:00:02]} axb3 {[%emt 0:00:01]} 35. g5 {[%emt 0:00:03]} hxg5 {[%emt 0:00:01]} 36. hxg5 {[%emt 0:00:01]} b2 {[%emt 0:00:05]} 37. Rf2 {[%emt 0:00:03]} Rxd3+ {[%emt 0:00:02]} 38. Kg2 {[%emt 0:00:03]} Rb3 {[%emt 0:00:05]} 39. Rb1 {[%emt 0:00:02]} Nd4 {[%emt 0:00:02]} 40. Rfxb2 {[%emt 0:00:04]} Rxb2+ {[%emt 0:00:00]} 41. Rxb2 {[%emt 0:00:01]} Nxf5 {[%emt 0:00:01]} 42. Kf3 {[%emt 0:00:04]} Kg6 {[%emt 0:00:11]} 43. Kg4 {[%emt 0:00:05]} Ne3+ {[%emt 0:00:01]} 44. Kf3 {[%emt 0:00:01]} Nf5 {[%emt 0:00:04]} 45. Ke4 {[%emt 0:00:05]} Ng3+ {[%emt 0:00:08]} 46. Kxe5 {[%emt 0:00:04]} Kxg5 {[%emt 0:00:00]} 47. Rg2 {[%emt 0:00:04]} Kg4 {[%emt 0:00:01]} 48. Kd5 {[%emt 0:00:05]} g5 {[%emt 0:00:00]} 49. Kxc5 {[%emt 0:00:04]} Kf3 {[%emt 0:00:01]} 50. Ra2 {[%emt 0:00:02]} g4 {[%emt 0:00:04]} 51. Kd5 {[%emt 0:00:02]} Ne2 {[%emt 0:00:03]} 52. Ra3+ {[%emt 0:00:04]} Kf2 {[%emt 0:00:02]} 53. Ke5 {[%emt 0:00:02]} Kg2 {[%emt 0:00:12]} 54. Kf5 {[%emt 0:00:03]} g3 {[%emt 0:00:01]} 55. Kg4 {[%emt 0:00:03]} Kf2 {[%emt 0:00:01]} 56. Rf3+ {[%emt 0:00:02]} Ke1 {[%emt 0:00:01]} 57. Re3 {[%emt 0:00:03]} g2 {[%emt 0:00:06]} 58. Kf3 {[%emt 0:00:06]} g1=Q {[%emt 0:00:05]} 59. Rxe2+ {[%emt 0:00:01]} Kd1 0-1

[Event "11th LCC Super Blitz 2019"]
[Site "London"]
[Date "2019.12.08"]
[Round "10.4"]
[White "Petrov, Vladimir Sergeev"]
[Black "Arkell, Keith C"]
[Result "0-1"]
[ECO "B12"]
[WhiteElo "2355"]
[BlackElo "2453"]
[Annotator "ChessBase"]
[PlyCount "63"]
[EventDate "2019.12.08"]
[EventType "swiss"]
[EventCountry "ENG"]
[SourceTitle "playchess.com"]
[Source "ChessBase"]
[SourceQuality "1"]
[TimeControl "180+2"]

1. e4 {[%emt 0:00:00]} c6 {[%emt 0:00:00]} 2. d4 {[%emt 0:00:00]} d5 {[%emt 0:00:00]} 3. e5 {[%emt 0:00:04]} c5 {[%emt 0:00:01]} 4. dxc5 {[%emt 0:00:05]} Nc6 {[%emt 0:00:01]} 5. Nf3 {[%emt 0:00:18]} Bg4 {[%emt 0:00:01]} 6. Be2 {[%emt 0:00:19]} Bxf3 {[%emt 0:00:04]} 7. Bxf3 {[%emt 0:00:02]} e6 {[%emt 0:00:01]} 8. Bf4 {[%emt 0:00:27]} Bxc5 {[%emt 0:00:02]} 9. O-O {[%emt 0:00:02]} Nge7 {[%emt 0:00:02]} 10. Qe2 {[%emt 0:00:48]} Ng6 {[%emt 0:00:04]} 11. Bg3 {[%emt 0:00:01]} Bd4 {[%emt 0:00:06]} 12. Nc3 {[%emt 0:00:06]} O-O {[%emt 0:00:09]} 13. Rfe1 {[%emt 0:00:05]} Bxe5 {[%emt 0:00:01]} 14. Rad1 {[%emt 0:00:07]} Qf6 {[%emt 0:00:07]} 15. Qb5 {[%emt 0:00:20]} Nd4 {[%emt 0:00:44]} 16. Qxb7 {[%emt 0:00:15]} Nxf3+ 17. gxf3 {[%emt 0:00:01]} Rab8 {[%emt 0:00:10]} 18. Qxa7 {[%emt 0:00:02]} Rxb2 {[%emt 0:00:05]} 19. Ne2 {[%emt 0:00:12]} Rxc2 {[%emt 0:00:16]} 20. Rd3 {[%emt 0:00:03]} h5 {[%emt 0:00:12]} 21. Qe3 {[%emt 0:00:11]} h4 {[%emt 0:00:19]} 22. Bxe5 {[%emt 0:00:02]} Nxe5 {[%emt 0:00:01]} 23. Ra3 {[%emt 0:00:02]} Nc4 {[%emt 0:00:04]} 24. Qb3 {[%emt 0:00:07]} Nxa3 {[%emt 0:00:07]} 25. Qxa3 {[%emt 0:00:01]} Rfc8 {[%emt 0:00:31]} 26. Qb3 {[%emt 0:00:04]} Qg6+ {[%emt 0:00:11]} 27. Kf1 {[%emt 0:00:05]} h3 {[%emt 0:00:09]} 28. Ng3 {[%emt 0:00:02]} Qf6 {[%emt 0:00:08]} 29. a4 {[%emt 0:00:02]} R2c3 {[%emt 0:00:01]} 30. Qa2 {[%emt 0:00:03]} Qxf3 {[%emt 0:00:02]} 31. Re2 {[%emt 0:00:02]} Rc1+ {[%emt 0:00:03]} 32. Re1 {[%emt 0:00:02]} 0-1

[Event "11th LCC Super Blitz 2019"]
[Site "London"]
[Date "2019.12.08"]
[Round "10.4"]
[White "Roberson, Peter T"]
[Black "Stoyanov, Viktor"]
[Result "0-1"]
[ECO "B22"]
[WhiteElo "2282"]
[BlackElo "2191"]
[Annotator "NA"]
[PlyCount "82"]
[EventDate "2019.12.08"]
[EventType "swiss"]
[EventCountry "ENG"]
[SourceTitle "playchess.com"]
[Source "ChessBase"]
[SourceQuality "1"]
[TimeControl "180+2"]

1. e4 {[%emt 0:00:00]} c5 {[%emt 0:00:00]} 2. c3 {[%emt 0:00:00]} Nf6 {[%emt 0:00:01]} 3. e5 {[%emt 0:00:00]} Nd5 {[%emt 0:00:01]} 4. Bc4 {[%emt 0:00:01]} Nb6 {[%emt 0:00:07]} 5. Bb3 {[%emt 0:00:01]} e6 {[%emt 0:00:02]} 6. d4 {[%emt 0:00:03]} cxd4 {[%emt 0:00:01]} 7. cxd4 {[%emt 0:00:01]} d6 {[%emt 0:00:00]} 8. Nf3 {[%emt 0:00:01]} N8d7 {[%emt 0:00:06]} 9. O-O {[%emt 0:00:03]} Be7 {[%emt 0:00:01]} 10. Nc3 {[%emt 0:00:02]} dxe5 {[%emt 0:00:02]} 11. dxe5 {[%emt 0:00:02]} O-O {[%emt 0:00:03]} 12. Qe2 {[%emt 0:00:02]} Nc5 {[%emt 0:00:03]} 13. Bc2 {[%emt 0:00:25]} Nd5 14. Nxd5 Qxd5 {[%emt 0:00:12]} 15. Rd1 {[%emt 0:00:04]} Qc6 {[%emt 0:00:03]} 16. Bg5 {[%emt 0:00:34]} Bxg5 {[%emt 0:01:13]} 17. Nxg5 {[%emt 0:00:00]} h6 {[%emt 0:00:09]} 18. Qh5 {[%emt 0:00:10]} Qc7 {[%emt 0:00:13]} 19. Rac1 {[%emt 0:00:10]} Qe7 {[%emt 0:00:29]} 20. h4 {[%emt 0:00:03]} b6 {[%emt 0:00:00]} 21. Rd4 {[%emt 0:00:29]} Bb7 {[%emt 0:00:00]} 22. Rg4 {[%emt 0:00:08]} f5 {[%emt 0:00:00]} 23. exf6 {[%emt 0:00:06]} Qxf6 {[%emt 0:00:00]} 24. f3 {[%emt 0:00:22]} Rac8 {[%emt 0:00:00]} 25. Re1 {[%emt 0:00:06]} Qxb2 {[%emt 0:00:07]} 26. Bh7+ {[%emt 0:00:21]} Kh8 {[%emt 0:00:01]} 27. Bg6 {[%emt 0:00:02]} Qd2 {[%emt 0:00:18]} 28. Rf1 {[%emt 0:00:06]} Qe3+ {[%emt 0:00:08]} 29. Kh1 {[%emt 0:00:01]} Ba6 {[%emt 0:00:06]} 30. Rg1 {[%emt 0:00:17]} Nd3 {[%emt 0:00:00]} 31. Ne4 {[%emt 0:00:07]} Bb7 {[%emt 0:00:04]} 32. Kh2 {[%emt 0:00:04]} Rc2 {[%emt 0:00:05]} 33. Bf7 {[%emt 0:00:04]} Nf4 {[%emt 0:00:07]} 34. Qe5 {[%emt 0:00:04]} Rxf7 {[%emt 0:00:01]} 35. Rd1 {[%emt 0:00:05]} Bxe4 {[%emt 0:00:07]} 36. fxe4 {[%emt 0:00:04]} Qe2 {[%emt 0:00:04]} 37. Rd8+ {[%emt 0:00:03]} Kh7 {[%emt 0:00:01]} 38. Qb8 {[%emt 0:00:01]} Qxg4 {[%emt 0:00:04]} 39. Rh8+ {[%emt 0:00:01]} Kg6 40. h5+ {[%emt 0:00:02]} Qxh5+ {[%emt 0:00:01]} 41. Kg3 {[%emt 0:00:00]} Rxg2# {[%emt 0:00:02]} 0-1

[Event "11th LCC Super Blitz 2019"]
[Site "London"]
[Date "2019.12.08"]
[Round "10.4"]
[White "Tanmay Chopra"]
[Black "Rowson, Jonathan"]
[Result "1/2-1/2"]
[ECO "D23"]
[WhiteElo "2100"]
[BlackElo "2561"]
[Annotator "ChessBase"]
[PlyCount "57"]
[EventDate "2019.12.08"]
[EventType "swiss"]
[EventCountry "ENG"]
[SourceTitle "playchess.com"]
[Source "ChessBase"]
[SourceQuality "1"]
[TimeControl "180+2"]

1. d4 {[%emt 0:00:00]} d5 {[%emt 0:00:01]} 2. c4 {[%emt 0:00:00]} c6 {[%emt 0:00:01]} 3. Nf3 {[%emt 0:00:02]} Nf6 {[%emt 0:00:00]} 4. Qc2 {[%emt 0:00:01]} dxc4 {[%emt 0:00:06]} 5. Qxc4 {[%emt 0:00:05]} Bf5 {[%emt 0:00:03]} 6. Nc3 {[%emt 0:00:07]} e6 {[%emt 0:00:02]} 7. Qb3 {[%emt 0:00:01]} Qb6 {[%emt 0:00:02]} 8. Qxb6 {[%emt 0:00:16]} axb6 {[%emt 0:00:01]} 9. Nh4 {[%emt 0:00:01]} Nbd7 {[%emt 0:00:17]} 10. Nxf5 {[%emt 0:00:05]} exf5 {[%emt 0:00:01]} 11. e3 {[%emt 0:00:18]} b5 {[%emt 0:00:04]} 12. Bd3 {[%emt 0:00:01]} g6 {[%emt 0:00:01]} 13. Bd2 {[%emt 0:00:02]} Nb6 {[%emt 0:00:04]} 14. f3 {[%emt 0:00:02]} Rd8 {[%emt 0:00:38]} 15. a3 {[%emt 0:00:35]} Bh6 {[%emt 0:00:05]} 16. h3 {[%emt 0:00:19]} O-O {[%emt 0:00:22]} 17. g3 {[%emt 0:01:02]} Rfe8 {[%emt 0:00:04]} 18. Kf2 {[%emt 0:00:05]} Nc4 {[%emt 0:00:21]} 19. Bxc4 {[%emt 0:00:04]} bxc4 {[%emt 0:00:01]} 20. Rad1 {[%emt 0:00:05]} b5 {[%emt 0:00:14]} 21. g4 {[%emt 0:00:02]} fxg4 {[%emt 0:00:13]} 22. hxg4 {[%emt 0:00:01]} Bg7 {[%emt 0:00:02]} 23. g5 {[%emt 0:00:05]} Nd5 {[%emt 0:00:08]} 24. Ne4 {[%emt 0:00:01]} f5 {[%emt 0:00:11]} 25. gxf6 {[%emt 0:00:02]} Nxf6 {[%emt 0:00:00]} 26. Nxf6+ {[%emt 0:00:01]} Bxf6 {[%emt 0:00:01]} 27. Bc3 {[%emt 0:00:03]} Rd7 {[%emt 0:00:04]} 28. e4 {[%emt 0:00:02]} Red8 {[%emt 0:00:01]} 29. Ke3 {[%emt 0:00:30]} 1/2-1/2

[Event "11th LCC Super Blitz 2019"]
[Site "London"]
[Date "2019.12.08"]
[Round "10.5"]
[White "Zulfic, Fedja"]
[Black "Onslow, Teddy"]
[Result "1/2-1/2"]
[ECO "D30"]
[WhiteElo "2032"]
[BlackElo "1647"]
[Annotator "NA"]
[PlyCount "103"]
[EventDate "2019.12.08"]
[EventType "swiss"]
[EventCountry "ENG"]
[SourceTitle "playchess.com"]
[Source "ChessBase"]
[SourceQuality "1"]
[TimeControl "180+2"]

1. d4 {[%emt 0:00:00]} d5 {[%emt 0:00:00]} 2. c4 {[%emt 0:00:00]} e6 {[%emt 0:00:00]} 3. Nf3 {[%emt 0:00:00]} Nf6 {[%emt 0:00:00]} 4. e3 {[%emt 0:00:01]} c6 {[%emt 0:00:00]} 5. Nbd2 {[%emt 0:00:01]} Bd6 {[%emt 0:00:02]} 6. Bd3 {[%emt 0:00:01]} dxc4 {[%emt 0:00:01]} 7. Nxc4 {[%emt 0:00:01]} Bc7 {[%emt 0:00:05]} 8. O-O {[%emt 0:00:02]} Nbd7 {[%emt 0:00:02]} 9. b4 {[%emt 0:00:08]} b5 {[%emt 0:00:01]} 10. Nce5 {[%emt 0:00:07]} Nxe5 {[%emt 0:00:04]} 11. Nxe5 {[%emt 0:00:07]} Bxe5 {[%emt 0:00:01]} 12. dxe5 {[%emt 0:00:02]} Nd5 {[%emt 0:00:09]} 13. a3 {[%emt 0:00:42]} a5 {[%emt 0:00:15]} 14. Bd2 {[%emt 0:00:40]} axb4 {[%emt 0:00:14]} 15. axb4 {[%emt 0:00:01]} Rxa1 {[%emt 0:00:16]} 16. Qxa1 {[%emt 0:00:01]} Nxe3 {[%emt 0:01:16]} 17. Bxe3 {[%emt 0:00:02]} Qxd3 {[%emt 0:00:01]} 18. Rd1 {[%emt 0:00:01]} Qb3 {[%emt 0:00:14]} 19. Bc5 {[%emt 0:00:02]} f6 {[%emt 0:00:07]} 20. exf6 {[%emt 0:00:25]} gxf6 21. Rb1 {[%emt 0:00:06]} Qd3 {[%emt 0:00:12]} 22. Rd1 {[%emt 0:00:01]} Qb3 {[%emt 0:00:00]} 23. Re1 {[%emt 0:00:47]} Kf7 {[%emt 0:00:01]} 24. Re3 {[%emt 0:00:01]} Qd5 {[%emt 0:00:10]} 25. h4 {[%emt 0:00:12]} Rg8 {[%emt 0:00:01]} 26. g3 {[%emt 0:00:02]} e5 {[%emt 0:00:22]} 27. Qb1 {[%emt 0:00:01]} Rg7 {[%emt 0:00:05]} 28. Rd3 {[%emt 0:00:02]} Qe6 {[%emt 0:00:05]} 29. Qd1 {[%emt 0:00:04]} Kg6 {[%emt 0:00:03]} 30. Rd6 {[%emt 0:00:07]} Qf5 {[%emt 0:00:02]} 31. Rxc6 {[%emt 0:00:03]} Bb7 {[%emt 0:00:01]} 32. Rb6 {[%emt 0:00:04]} Bf3 {[%emt 0:00:02]} 33. Qc1 {[%emt 0:00:07]} Qh3 {[%emt 0:00:02]} 34. Qf1 {[%emt 0:00:01]} Qxf1+ {[%emt 0:00:02]} 35. Kxf1 {[%emt 0:00:01]} Bd5 {[%emt 0:00:01]} 36. Ke2 {[%emt 0:00:01]} Bc4+ {[%emt 0:00:00]} 37. Ke3 {[%emt 0:00:01]} Rd7 {[%emt 0:00:01]} 38. Rd6 {[%emt 0:00:01]} Rxd6 {[%emt 0:00:01]} 39. Bxd6 {[%emt 0:00:01]} Kf5 {[%emt 0:00:02]} 40. Be7 {[%emt 0:00:03]} Ke6 {[%emt 0:00:00]} 41. Bf8 {[%emt 0:00:01]} Kd5 {[%emt 0:00:03]} 42. Bc5 {[%emt 0:00:02]} Ke6 {[%emt 0:00:00]} 43. f4 {[%emt 0:00:01]} exf4+ 44. Kxf4 {[%emt 0:00:02]} Kf7 {[%emt 0:00:04]} 45. Bd4 {[%emt 0:00:01]} Be6 {[%emt 0:00:01]} 46. Bc3 {[%emt 0:00:06]} f5 {[%emt 0:00:01]} 47. Kg5 {[%emt 0:00:03]} Kg8 {[%emt 0:00:02]} 48. Kh6 {[%emt 0:00:02]} Bd7 {[%emt 0:00:01]} 49. Be5 {[%emt 0:00:02]} Be6 {[%emt 0:00:01]} 50. Kg5 {[%emt 0:00:01]} Bd7 {[%emt 0:00:01]} 51. Kf6 {[%emt 0:00:01]} Kf8 {[%emt 0:00:02]} 52. Bd6+ {[%emt 0:00:06] Ke7+ Kxe7 Bc8 Be5 h5 Kf6 Bd7 Kg5} 1/2-1/2